fUSD/lending_fUSD_20251225
["ID","MTS","AMOUNT","RATE_DAILY","PERIOD"]
[399816099,1766698242422,-500.0,0.00016438,2]
[399816100,1766698242432,-500.0,0.00016438,2]
[399816101,1766698242442,-500.0,0.00016438,2]
[399816102,1766698242451,-500.0,0.00016438,2]
[399816103,1766698242462,-500.0,0.00016438,2]
[399816104,1766698242471,-500.0,0.00016438,2]
[399816105,1766698242480,-500.0,0.00016438,2]
[399816106,1766698242490,-500.0,0.00016438,2]
[399816107,1766698242500,-500.0,0.00016438,2]
[399816108,1766698242510,-500.0,0.00016438,2]
[399816109,1766698242519,-500.0,0.00016438,2]
[399816110,1766698242528,-500.0,0.00016438,2]
[399816111,1766698242538,-500.0,0.00016438,2]
[399816112,1766698242547,-500.0,0.00016438,2]
[399816113,1766698242557,-500.0,0.00016438,2]
[399816114,1766698242567,-500.0,0.00016438,2]
[399816115,1766698242577,-500.0,0.00016438,2]
[399816116,1766698242587,-500.0,0.00016438,2]
[399816117,1766698242597,-500.0,0.00016438,2]
[399816118,1766698242606,-500.0,0.00016438,2]
[399816119,1766698242616,-500.0,0.00016438,2]
[399816120,1766698242626,-500.0,0.00016438,2]
[399816121,1766698242635,-500.0,0.00016438,2]
[399816122,1766698242646,-545.44363307,0.00016438,2]
[399816123,1766698242656,-500.0,0.00016438,2]
[399816124,1766698242666,-500.0,0.00016438,2]
[399816125,1766698242675,-500.0,0.00016438,2]
[399816126,1766698242685,-500.0,0.00016438,2]
[399816127,1766698242694,-500.0,0.00016438,2]
[399816128,1766698242703,-500.0,0.00016438,2]
[399816129,1766698242713,-500.0,0.00016438,2]
[399816130,1766698242723,-500.0,0.00016438,2]
[399816131,1766698242732,-500.0,0.00016438,2]
[399816132,1766698242742,-500.0,0.00016438,2]
[399816133,1766698242751,-948.42200433,0.00016438,2]
[399816134,1766698242761,-809.0,0.00016438,2]
[399816135,1766698242770,-166.66,0.00016487,2]
[399816136,1766698242780,-757.75865028,0.00016501,2]
[399816137,1766698242789,-2580.25977977,0.00016503,2]
[399816138,1766698242798,-948.42200433,0.00016521,2]
[399816139,1766698242808,-216.0,0.00016526,2]
[399816140,1766698242817,-948.42200433,0.00016575,2]
[399816141,1766698242827,-168.0,0.00016576,2]
[399816142,1766698242836,-13627.59112142,0.0001659,2]
[399816143,1766698242846,-5458.71036405,0.0001659,2]
[399816144,1766698242855,-358.86034089,0.000166,2]
[399816145,1766698242865,-1197.0,0.0001664,2]
[399816146,1766698242874,-948.42200433,0.00016658,2]
[399816147,1766698242884,-5178.43814908,0.0001666,2]
[399816148,1766698242894,-229.34538253,0.00016668,2]
[399816149,1766698242903,-151.0,0.00016697,2]
[399816150,1766698242913,-595.37131296,0.00016697,2]
[399816151,1766698242923,-757.75865028,0.00016701,2]
[399816152,1766698242933,-2580.25977977,0.00016701,2]
[399816153,1766698242943,-948.42200433,0.00016712,2]
[399816154,1766698242955,-200.45994766,0.00016726,2]
[399816155,1766698242965,-500.0,0.00016731,2]
[399816156,1766698242975,-675.89091811,0.00016731,2]
[399816157,1766698242985,-665.6820002,0.00016731,2]
[399816158,1766698242995,-500.0,0.00016731,2]
[399816159,1766698243005,-500.0,0.00016731,2]
[399816163,1766698243253,-222.04159557,0.00016731,2]
[399816164,1766698243263,-500.0,0.00016731,2]
[399816165,1766698243274,-500.0,0.00016731,2]
[399816166,1766698243283,-226.54246888,0.00016731,2]
[399816167,1766698243293,-1000.0,0.00016731,2]
[399816168,1766698243303,-1000.0,0.00016731,2]
[399816169,1766698243312,-1000.0,0.00016731,2]
[399816170,1766698243322,-211.71097103,0.00016731,2]
[399816171,1766698243333,-13627.59112142,0.00016745,2]
[399816172,1766698243343,-5458.71036405,0.00016745,2]
[399816173,1766698243352,-948.42200433,0.00016767,2]
[399816174,1766698243362,-150.0,0.0001677,2]
[399816175,1766698243372,-1680.0,0.0001681,2]
[399816176,1766698243382,-1000.0,0.00016827,2]
[399816177,1766698243392,-948.42200433,0.00016849,2]
[399816178,1766698243402,-200.0,0.00016863,2]
[399816179,1766698243411,-200.0,0.00016864,2]
[399816180,1766698243421,-200.0,0.00016864,2]
[399816181,1766698243430,-10000.0,0.000169,2]
[399816182,1766698243440,-1926.43051864,0.000169,3]
[399816183,1766698243450,-229.34538253,0.000169,2]
[399816184,1766698243459,-170.28248417,0.000169,2]
[399816185,1766698243469,-13627.59112142,0.000169,2]
[399816186,1766698243478,-2141.13101448,0.000169,2]
[399816187,1766698243488,-5458.71036405,0.000169,2]
[399816188,1766698243498,-4210.01963503,0.000169,2]
[399816189,1766698243507,-2580.25977977,0.000169,2]
[399816190,1766698243516,-757.75865028,0.000169,2]
[399816191,1766698243526,-823.66477228,0.000169,2]
[399816192,1766698243536,-515.83487979,0.000169,2]
[399816193,1766698243545,-9833.0,0.000169,2]
[399816194,1766698243554,-1000.0,0.00016903,2]
[399816195,1766698243563,-1000.0,0.00016903,2]
[399816196,1766698243573,-1000.0,0.00016903,2]
[399816197,1766698243582,-1000.0,0.00016903,2]
[399816198,1766698243592,-1000.0,0.00016903,2]
[399816199,1766698243602,-1000.0,0.00016903,2]
[399816200,1766698243611,-1000.0,0.00016903,2]
[399816201,1766698243621,-1000.0,0.00016903,2]
[399816202,1766698243630,-1000.0,0.00016903,2]
[399816203,1766698243640,-1000.0,0.00016903,2]
[399816204,1766698243649,-1000.0,0.00016903,2]
[399816205,1766698243659,-1000.0,0.00016903,2]
[399816206,1766698243668,-347.511,0.00016903,2]
[399816207,1766698243678,-948.42200433,0.00016904,2]
[399816208,1766698243688,-1000.0,0.00016915,2]
[399816209,1766698243698,-1000.0,0.00016915,2]
[399816210,1766698243707,-1000.0,0.00016915,2]
[399816211,1766698243717,-1000.0,0.00016915,2]
[399816212,1766698243726,-1000.0,0.00016915,2]
[399816213,1766698243736,-916.272,0.00016915,2]
[399816214,1766698243745,-1000.0,0.00016916,2]
[399816215,1766698243755,-2000.0,0.00016919,2]
[399816216,1766698243765,-2000.0,0.00016919,2]
[399816217,1766698243774,-2000.0,0.00016919,2]
[399816218,1766698243784,-2000.0,0.00016919,2]
[399816219,1766698243793,-2000.0,0.00016919,2]
[399816220,1766698243803,-2000.0,0.00016919,2]
[399816221,1766698243813,-1000.0,0.00016924,2]
[399816222,1766698243822,-333.22935287,0.00016932,2]
[399816223,1766698243832,-256.33027144,0.00016932,2]
[399816224,1766698243841,-1000.0,0.00016937,2]
[399816225,1766698243851,-908.68741303,0.0001697,2]
[399816226,1766698243860,-150.0,0.00016973,2]
[399816227,1766698243870,-150.0,0.00016973,2]
[399816228,1766698243880,-500.0,0.00016973,2]
[399816229,1766698243889,-150.0,0.00016973,2]
[399816230,1766698243899,-317.19636672,0.00016983,2]
[399816231,1766698243910,-287.4865066,0.00016984,2]
[399816232,1766698243919,-948.42200433,0.00016986,2]
[399816233,1766698243928,-150.0,0.00016986,2]
[399816234,1766698243938,-150.0,0.00016986,2]
[399816235,1766698243948,-176952.9,0.00016986,2]
[399816236,1766698243957,-333.22935287,0.00016986,2]
[399816237,1766698243967,-256.33027144,0.00016986,2]
[399816238,1766698243976,-1237.91358529,0.00016991,2]
[399816239,1766698243986,-1000.0,0.00016996,2]
[399816240,1766698243996,-151.0,0.00016997,2]
[399816241,1766698244006,-300.0,0.00016999,2]
[399816242,1766698244015,-300.0,0.00016999,2]
[399816243,1766698244025,-300.0,0.00016999,2]
[399816244,1766698244035,-532.23,0.00016999,2]
[399816245,1766698244044,-532.23,0.00016999,2]
[399816246,1766698244054,-532.23,0.00016999,2]
[399816247,1766698244067,-532.23,0.00016999,2]
[399816248,1766698244077,-532.23,0.00016999,2]
[399816249,1766698244087,-532.23,0.00016999,2]
[399816250,1766698244097,-532.23,0.00016999,2]
[399816251,1766698244107,-532.23,0.00016999,2]
[399816252,1766698244117,-532.23,0.00016999,2]
[399816253,1766698244127,-532.23,0.00016999,2]
[399816254,1766698244137,-532.23,0.00016999,2]
[399816255,1766698244147,-532.23,0.00016999,2]
[399816256,1766698244156,-532.23,0.00016999,2]
[399816257,1766698244166,-532.23,0.00016999,2]
[399816258,1766698244175,-532.23,0.00016999,2]
[399816259,1766698244185,-532.23,0.00016999,2]
[399816260,1766698244196,-532.23,0.00016999,2]
[399816261,1766698244206,-532.23,0.00016999,2]
[399816262,1766698244216,-532.23,0.00016999,2]
[399816263,1766698244226,-532.29545808,0.00016999,2]
[399816264,1766698244236,-473517.48528779,0.00017,2]
[399816265,1766698244245,-324821.56418384,0.00017,2]
[399816266,1766698244310,-949.309992,0.00017,2]
[399816267,1766698244704,-26843.62044897,0.00017,2]
[399816268,1766698244792,-1220.37,0.00016192,2]
[399816269,1766698244801,-791.38052409,0.00017,2]
[399816270,1766698244839,-2474.29232095,0.00017,2]
[399816271,1766698244850,-777.45991394,0.00017,2]
[399816272,1766698244872,-1118.4173,0.00017,2]
[399816277,1766698246190,-500.0,0.00016438,2]
[399816278,1766698246200,-500.0,0.00016438,2]
[399816279,1766698246210,-500.0,0.00016438,2]
[399816280,1766698246220,-500.0,0.00016438,2]
[399816281,1766698246230,-345.1357987,0.00016438,2]
[399816282,1766698246242,-154.8642013,0.00016438,2]
[399816283,1766698246252,-483.42485477,0.00016438,2]
[399816284,1766698246309,-16.57514523,0.00016438,2]
[399816285,1766698246320,-500.0,0.00016438,2]
[399816286,1766698246330,-53.35573704,0.00016438,2]
[399816287,1766698246341,-446.64426296,0.00016438,2]
[399816288,1766698246351,-28.70050994,0.00016438,2]
[399816289,1766698246362,-471.29949006,0.00016438,2]
[399816290,1766698246372,-500.0,0.00016438,2]
[399816291,1766698246381,-500.0,0.00016438,2]
[399816292,1766698246391,-500.0,0.00016438,2]
[399816293,1766698246400,-500.0,0.00016438,2]
[399816294,1766698246410,-500.0,0.00016438,2]
[399816295,1766698246420,-500.0,0.00016438,2]
[399816296,1766698246430,-435.95810316,0.00016438,2]
[399816297,1766698246442,-64.04189684,0.00016438,2]
[399816298,1766698246451,-500.0,0.00016438,2]
[399816299,1766698246461,-500.0,0.00016438,2]
[399816300,1766698246470,-500.0,0.00016438,2]
[399816301,1766698246480,-245.44363307,0.00016438,2]
[399816303,1766698246489,-356.07047019,0.00016438,2]
[399816304,1766698246521,-143.92952981,0.00016438,2]
[399816305,1766698246531,-500.0,0.00016438,2]
[399816306,1766698246540,-331.50223695,0.00016438,2]
[399816307,1766698246552,-168.49776305,0.00016438,2]
[399816308,1766698246561,-500.0,0.00016438,2]
[399816309,1766698246570,-500.0,0.00016438,2]
[399816310,1766698246579,-500.0,0.00016438,2]
[399816311,1766698246588,-659.62,0.00016712,2]
[399816312,1766698246598,-6476.89150603,0.00017,2]
[399816313,1766698246609,-517.97784,0.00017,2]
[399816320,1766698277079,9698.4,0.00032877,120]
[399816343,1766699432253,-150.0,0.0001433,2]
[399816344,1766699432264,-166.66,0.00014336,2]
[399816345,1766699432274,-1000.0,0.00014346,2]
[399816346,1766699432284,-500.0,0.00014351,2]
[399816347,1766699432294,-150.0,0.00014602,2]
[399816348,1766699432304,-166.66,0.00014638,2]
[399816349,1766699432314,-200.0,0.00014815,2]
[399816350,1766699432324,-166.66,0.00014939,2]
[399816351,1766699432334,-169.78,0.00015022,2]
[399816352,1766699432345,-1000.0,0.0001513,2]
[399816353,1766699432356,-1200.0,0.0001514,2]
[399816354,1766699432366,-300.0,0.0001514,2]
[399816355,1766699432377,-1393.11957863,0.00015141,2]
[399816356,1766699432390,-23815.31979874,0.00015141,2]
[399816357,1766699432400,-1371.30544109,0.00015141,2]
[399816358,1766699432410,-177.72761324,0.00015204,2]
[399816359,1766699432421,-268.0542831,0.00015204,2]
[399816360,1766699432430,-192.74936202,0.00015204,2]
[399816361,1766699432440,-2644.32813103,0.00015205,2]
[399816362,1766699432457,-659.1457183,0.00015205,2]
[399816363,1766699432469,-387.105,0.00015205,2]
[399816364,1766699432482,-1159.23927931,0.00015205,2]
[399816365,1766699432511,-606.48713533,0.00015205,2]
[399816366,1766699432523,-558.45324601,0.00015205,2]
[399816367,1766699432536,-4241.55482183,0.00015205,2]
[399816368,1766699432549,-497.55228091,0.00015205,2]
[399816462,1766699433656,-989246.13438728,0.00015205,2]
[399816463,1766699433667,-166.66,0.00015241,2]
[399816464,1766699433678,-1000.0,0.00015278,2]
[399816465,1766699433688,-150.0,0.00015288,2]
[399816466,1766699433699,-150.0,0.00015288,2]
[399816467,1766699433709,-190.41715558,0.00015288,2]
[399816468,1766699433719,-150.0,0.00015288,2]
[399816469,1766699433730,-150.0,0.00015288,2]
[399816470,1766699433740,-150.0,0.00015288,2]
[399816471,1766699433750,-150.0,0.00015288,2]
[399816472,1766699433760,-150.0,0.00015288,2]
[399816473,1766699433770,-150.0,0.00015288,2]
[399816474,1766699433780,-150.0,0.00015288,2]
[399816475,1766699433790,-150.0,0.00015288,2]
[399816476,1766699433800,-150.0,0.00015288,2]
[399816477,1766699433810,-150.0,0.00015288,2]
[399816478,1766699433819,-14092.2817,0.00015301,2]
[399816479,1766699433830,-1000.0,0.00015301,2]
[399816480,1766699433841,-2500.0,0.00015301,2]
[399816481,1766699433854,-300.0,0.00015308,2]
[399816482,1766699433864,-9468.86445539,0.00015309,2]
[399816483,1766699433873,-302.14899468,0.00015309,2]
[399816484,1766699433883,-150.0,0.0001532,2]
[399816485,1766699433893,-150.0,0.00015332,2]
[399816486,1766699433903,-150.0,0.00015334,2]
[399816487,1766699433912,-25208.43937731,0.00015336,2]
[399816488,1766699433923,-150.0,0.00015352,2]
[399816489,1766699433934,-150.0,0.00015353,2]
[399816490,1766699433944,-150.0,0.00015358,2]
[399816491,1766699433954,-150.0,0.00015373,2]
[399816492,1766699433964,-150.0,0.00015377,2]
[399816493,1766699433973,-150.0,0.00015379,2]
[399816494,1766699433984,-555.40225187,0.00015382,2]
[399816495,1766699433994,-150.0,0.00015384,2]
[399816496,1766699434003,-151.0,0.00015392,2]
[399816497,1766699434014,-207.4,0.00015392,2]
[399816498,1766699434023,-151.0,0.00015392,2]
[399816499,1766699434033,-151.0,0.00015392,2]
[399816500,1766699434043,-151.0,0.00015392,2]
[399816501,1766699434053,-151.0,0.00015392,2]
[399816502,1766699434063,-151.0,0.00015392,2]
[399816503,1766699434072,-151.0,0.00015392,2]
[399816504,1766699434082,-151.0,0.00015392,2]
[399816505,1766699434095,-151.0,0.00015392,2]
[399816506,1766699434106,-151.0,0.00015392,2]
[399816507,1766699434116,-151.0,0.00015392,2]
[399816508,1766699434126,-151.0,0.00015398,2]
[399816509,1766699434142,-150.0,0.000154,2]
[399816510,1766699434151,-500.0,0.000154,2]
[399816511,1766699434161,-150.0,0.00015409,2]
[399816512,1766699434171,-150.0,0.00015416,2]
[399816513,1766699434181,-150.0,0.00015418,2]
[399816514,1766699434191,-150.0,0.00015422,2]
[399816515,1766699434200,-150.0,0.00015425,2]
[399816516,1766699434210,-150.0,0.00015429,2]
[399816517,1766699434225,-150.0,0.00015448,2]
[399816518,1766699434235,-150.0,0.00015458,2]
[399816519,1766699434245,-150.0,0.00015458,2]
[399816520,1766699434255,-150.0,0.00015466,2]
[399816521,1766699434266,-150.0,0.00015471,2]
[399816522,1766699434275,-150.0,0.0001548,2]
[399816523,1766699434285,-150.0,0.00015484,2]
[399816524,1766699434295,-9468.8644553,0.00015486,2]
[399816525,1766699434305,-150.0,0.000155,2]
[399816526,1766699434315,-150.0,0.000155,2]
[399816527,1766699434326,-500.0,0.00015505,2]
[399816528,1766699434337,-500.0,0.00015505,2]
[399816529,1766699434347,-150.0,0.00015511,2]
[399816530,1766699434357,-150.0,0.00015512,2]
[399816531,1766699434367,-150.0,0.00015517,2]
[399816532,1766699434376,-150.0,0.0001553,2]
[399816533,1766699434387,-25208.43937731,0.00015532,2]
[399816534,1766699434397,-150.0,0.00015542,2]
[399816535,1766699434407,-166.66,0.00015543,2]
[399816536,1766699434417,-150.0,0.00015544,2]
[399816537,1766699434429,-150.0,0.00015549,2]
[399816538,1766699434439,-150.0,0.00015556,2]
[399816539,1766699434450,-150.0,0.00015563,2]
[399816540,1766699434461,-150.0,0.00015571,2]
[399816541,1766699434471,-150.0,0.00015571,2]
[399816542,1766699434482,-150.0,0.00015576,2]
[399816543,1766699434492,-500.0,0.00015592,2]
[399816544,1766699434503,-194.3,0.00015599,2]
[399816545,1766699434513,-150.0,0.00015601,2]
[399816546,1766699434523,-150.0,0.00015608,2]
[399816547,1766699434534,-150.0,0.00015609,2]
[399816548,1766699434546,-150.0,0.00015614,2]
[399816549,1766699434556,-150.0,0.00015627,2]
[399816550,1766699434567,-150.0,0.00015627,2]
[399816551,1766699434578,-150.0,0.00015627,2]
[399816552,1766699434589,-1788.58,0.00015628,2]
[399816553,1766699434600,-555.40225183,0.00015635,2]
[399816554,1766699434611,-150.0,0.0001564,2]
[399816555,1766699434620,-150.0,0.00015642,2]
[399816556,1766699434631,-150.0,0.00015645,2]
[399816557,1766699434641,-150.0,0.00015652,2]
[399816558,1766699434651,-150.0,0.00015655,2]
[399816559,1766699434661,-9468.8644553,0.00015663,2]
[399816560,1766699434671,-150.0,0.00015672,2]
[399816561,1766699434681,-150.0,0.0001568,2]
[399816562,1766699434692,-150.0,0.0001569,2]
[399816563,1766699434702,-150.0,0.00015701,2]
[399816564,1766699434713,-150.0,0.00015704,2]
[399816565,1766699434723,-150.0,0.00015712,2]
[399816566,1766699434733,-150.0,0.00015712,2]
[399816567,1766699434743,-150.0,0.00015712,2]
[399816568,1766699434754,-1135.94296454,0.00015714,2]
[399816569,1766699434764,-25208.43937731,0.00015727,2]
[399816570,1766699434774,-150.0,0.00015735,2]
[399816571,1766699434784,-150.0,0.00015736,2]
[399816572,1766699434795,-150.0,0.00015745,2]
[399816573,1766699434805,-150.0,0.00015747,2]
[399816574,1766699434815,-3702.93,0.00015747,2]
[399816575,1766699434826,-500.0,0.00015754,2]
[399816576,1766699434836,-150.0,0.00015768,2]
[399816577,1766699434847,-150.0,0.00015773,2]
[399816578,1766699434857,-150.0,0.00015779,2]
[399816579,1766699434868,-150.0,0.00015783,2]
[399816580,1766699434878,-150.0,0.00015793,2]
[399816581,1766699434888,-150.0,0.00015797,2]
[399816582,1766699434898,-150.0,0.00015797,2]
[399816583,1766699434909,-150.0,0.000158,2]
[399816584,1766699434919,-150.0,0.0001581,2]
[399816585,1766699434929,-150.0,0.00015824,2]
[399816586,1766699434939,-150.0,0.00015833,2]
[399816587,1766699434949,-150.0,0.00015839,2]
[399816588,1766699434960,-9468.8644553,0.00015839,2]
[399816589,1766699434969,-166.66,0.00015845,2]
[399816590,1766699434979,-150.0,0.00015854,2]
[399816591,1766699434989,-150.0,0.00015854,2]
[399816592,1766699434999,-150.0,0.00015865,2]
[399816593,1766699435008,-150.0,0.00015869,2]
[399816594,1766699435018,-150.0,0.00015876,2]
[399816595,1766699435029,-150.0,0.00015882,2]
[399816596,1766699435039,-150.0,0.00015884,2]
[399816597,1766699435049,-555.40225183,0.00015888,2]
[399816598,1766699435059,-150.0,0.00015894,2]
[399816599,1766699435068,-150.0,0.00015897,2]
[399816600,1766699435079,-150.0,0.00015913,2]
[399816601,1766699435090,-25208.43937731,0.00015923,2]
[399816602,1766699435100,-150.0,0.00015925,2]
[399816603,1766699435110,-150.0,0.00015925,2]
[399816604,1766699435120,-150.0,0.00015929,2]
[399816605,1766699435130,-150.0,0.0001593,2]
[399816606,1766699435140,-150.0,0.00015941,2]
[399816607,1766699435150,-150.0,0.00015958,2]
[399816608,1766699435160,-150.0,0.00015961,2]
[399816609,1766699435170,-150.0,0.00015967,2]
[399816610,1766699435180,-150.0,0.00015967,2]
[399816611,1766699435189,-150.0,0.00015967,2]
[399816612,1766699435199,-302.14899466,0.00015975,2]
[399816613,1766699435209,-150.0,0.00015976,2]
[399816614,1766699435219,-169.78,0.00015985,2]
[399816615,1766699435231,-150.0,0.00015993,2]
[399816616,1766699435240,-150.0,0.00015995,2]
[399816617,1766699435250,-150.0,0.00016003,2]
[399816618,1766699435260,-150.0,0.00016006,2]
[399816619,1766699435270,-150.0,0.00016016,2]
[399816620,1766699435281,-9468.8644553,0.00016016,2]
[399816621,1766699435292,-150.0,0.00016022,2]
[399816622,1766699435302,-150.0,0.00016025,2]
[399816623,1766699435312,-150.0,0.00016048,2]
[399816624,1766699435322,-150.0,0.00016052,2]
[399816625,1766699435332,-150.0,0.00016057,2]
[399816626,1766699435341,-150.0,0.00016066,2]
[399816627,1766699435351,-150.0,0.00016068,2]
[399816628,1766699435361,-150.0,0.00016072,2]
[399816629,1766699435372,-150.0,0.00016089,2]
[399816630,1766699435382,-150.0,0.00016092,2]
[399816631,1766699435392,-150.0,0.00016114,2]
[399816632,1766699435402,-25208.43937731,0.00016118,2]
[399816633,1766699435415,-150.0,0.00016121,2]
[399816634,1766699435433,-150.0,0.00016137,2]
[399816635,1766699435443,-150.0,0.00016137,2]
[399816636,1766699435453,-150.0,0.00016137,2]
[399816637,1766699435463,-150.0,0.00016137,2]
[399816638,1766699435472,-150.0,0.00016137,2]
[399816639,1766699435483,-150.0,0.00016137,2]
[399816640,1766699435492,-150.0,0.00016137,2]
[399816641,1766699435503,-150.0,0.00016137,2]
[399816642,1766699435513,-1600.0,0.00016138,2]
[399816643,1766699435523,-1000.0,0.00016139,2]
[399816644,1766699435534,-555.40225183,0.00016141,2]
[399816645,1766699435544,-578.20924308,0.00016149,2]
[399816646,1766699435553,-151.0,0.00016149,2]
[399816647,1766699435563,-3610.92924073,0.00016149,2]
[399816648,1766699435573,-250.0,0.00016149,2]
[399816649,1766699435583,-250.0,0.00016149,2]
[399816650,1766699435593,-250.0,0.00016149,2]
[399816651,1766699435603,-250.0,0.00016149,2]
[399816652,1766699435614,-250.0,0.00016149,2]
[399816653,1766699435624,-250.0,0.00016149,2]
[399816654,1766699435634,-250.0,0.00016149,2]
[399816655,1766699435644,-574.12855637,0.00016149,2]
[399816656,1766699435654,-250.0,0.00016149,2]
[399816657,1766699435663,-500.0,0.00016149,2]
[399816658,1766699435674,-250.0,0.00016149,2]
[399816659,1766699435685,-500.0,0.00016149,2]
[399816660,1766699435694,-500.0,0.00016149,2]
[399816661,1766699435705,-250.0,0.00016149,2]
[399816662,1766699435715,-283.18901002,0.00016149,2]
[399816663,1766699435725,-500.0,0.00016149,2]
[399816664,1766699435734,-250.0,0.00016149,2]
[399816665,1766699435745,-500.0,0.00016149,2]
[399816666,1766699435754,-151.0,0.00016149,2]
[399816667,1766699435764,-500.0,0.00016149,2]
[399816668,1766699435774,-500.0,0.00016149,2]
[399816669,1766699435784,-500.0,0.00016149,2]
[399816670,1766699435795,-500.0,0.00016149,2]
[399816671,1766699435805,-500.0,0.00016149,2]
[399816672,1766699435815,-500.0,0.00016149,2]
[399816673,1766699435825,-500.0,0.00016149,2]
[399816674,1766699435835,-500.0,0.00016149,2]
[399816675,1766699435848,-500.0,0.00016149,2]
[399816676,1766699435857,-500.0,0.00016149,2]
[399816677,1766699435867,-500.0,0.00016149,2]
[399816678,1766699435877,-500.0,0.00016149,2]
[399816679,1766699435889,-250.0,0.00016149,2]
[399816680,1766699435899,-500.0,0.00016149,2]
[399816681,1766699435908,-500.0,0.00016149,2]
[399816682,1766699435919,-250.0,0.00016149,2]
[399816683,1766699435929,-500.0,0.00016149,2]
[399816684,1766699435939,-250.0,0.00016149,2]
[399816685,1766699435948,-500.0,0.00016149,2]
[399816686,1766699435958,-250.0,0.00016149,2]
[399816687,1766699435969,-500.0,0.00016149,2]
[399816688,1766699435978,-250.0,0.00016149,2]
[399816689,1766699435988,-500.0,0.00016149,2]
[399816690,1766699435998,-250.0,0.00016149,2]
[399816691,1766699436009,-500.0,0.00016149,2]
[399816692,1766699436019,-250.0,0.00016149,2]
[399816693,1766699436029,-250.0,0.00016149,2]
[399816694,1766699436039,-322.6107,0.00016149,2]
[399816695,1766699436049,-250.0,0.00016149,2]
[399816696,1766699436059,-250.0,0.00016149,2]
[399816697,1766699436069,-250.0,0.00016149,2]
[399816698,1766699436079,-1500.0,0.00016149,2]
[399816699,1766699436088,-1500.0,0.00016149,2]
[399816700,1766699436099,-1500.0,0.00016149,2]
[399816701,1766699436111,-1500.0,0.00016149,2]
[399816702,1766699436121,-1500.0,0.00016149,2]
[399816703,1766699436130,-1500.0,0.00016149,2]
[399816704,1766699436140,-1500.0,0.00016149,2]
[399816705,1766699436150,-1500.0,0.00016149,2]
[399816706,1766699436160,-1500.0,0.00016149,2]
[399816707,1766699436170,-1500.0,0.00016149,2]
[399816708,1766699436180,-151.0,0.00016149,2]
[399816709,1766699436190,-250.0,0.00016149,2]
[399816710,1766699436200,-1500.0,0.00016149,2]
[399816711,1766699436210,-250.0,0.00016149,2]
[399816712,1766699436219,-250.0,0.00016149,2]
[399816713,1766699436229,-250.0,0.00016149,2]
[399816714,1766699436238,-250.0,0.00016149,2]
[399816715,1766699436249,-250.0,0.00016149,2]
[399816716,1766699436258,-200.0,0.00016149,2]
[399816717,1766699436268,-250.0,0.00016149,2]
[399816718,1766699436278,-620.0,0.00016149,2]
[399816719,1766699436288,-207.4,0.00016149,2]
[399816720,1766699436298,-215.0738,0.00016149,2]
[399816721,1766699436308,-223.0315306,0.00016149,2]
[399816722,1766699436317,-231.28369723,0.00016149,2]
[399816723,1766699436327,-239.84119403,0.00016149,2]
[399816724,1766699436337,-250.0,0.00016149,2]
[399816725,1766699436348,-248.71531821,0.00016149,2]
[399816726,1766699436359,-250.0,0.00016149,2]
[399816727,1766699436369,-257.91778498,0.00016149,2]